fUST/lending_fUST_20240828
["ID","MTS","AMOUNT","RATE_DAILY","PERIOD"]
[336395020,1724805048728,-753.98,0.00011779,2]
[336395021,1724805048737,-753.98,0.00011779,2]
[336395022,1724805048747,-753.98,0.00011779,2]
[336395023,1724805048756,-753.98,0.00011779,2]
[336395024,1724805048766,-754.07809799,0.00011779,2]
[336395025,1724805048776,-500.0,0.0001178,2]
[336395026,1724805048786,-500.0,0.0001178,2]
[336395027,1724805048795,-500.0,0.0001178,2]
[336395028,1724805048809,-500.0,0.0001178,2]
[336395029,1724805048818,-500.0,0.0001178,2]
[336395030,1724805048827,-500.0,0.0001178,2]
[336395031,1724805048837,-500.0,0.0001178,2]
[336395032,1724805048846,-500.0,0.0001178,2]
[336395033,1724805048856,-500.0,0.0001178,2]
[336395034,1724805048866,-500.0,0.0001178,2]
[336395035,1724805048875,-500.0,0.0001178,2]
[336395036,1724805048885,-500.0,0.0001178,2]
[336395037,1724805048894,-1310.62,0.0001178,2]
[336395038,1724805048903,-820.23,0.0001178,2]
[336395039,1724805048912,-500.0,0.0001178,2]
[336395040,1724805048922,-432.2546606,0.0001178,2]
[336395041,1724805048932,-1563.68,0.0001178,2]
[336395042,1724805048944,-500.0,0.0001178,2]
[336395043,1724805048954,-500.0,0.0001178,2]
[336395044,1724805048963,-347.94978266,0.0001178,2]
[336395045,1724805048973,-500.0,0.0001178,2]
[336395046,1724805048982,-500.0,0.0001178,2]
[336395047,1724805048992,-500.0,0.0001178,2]
[336395048,1724805049002,-500.0,0.0001178,2]
[336395049,1724805049011,-500.0,0.0001178,2]
[336395050,1724805049024,-500.0,0.0001178,2]
[336395051,1724805049034,-185.89,0.0001178,2]
[336395052,1724805049043,-500.0,0.0001178,2]
[336395053,1724805049054,-500.0,0.0001178,2]
[336395054,1724805049064,-500.0,0.0001178,2]
[336395055,1724805049074,-227.88,0.0001178,2]
[336395056,1724805049083,-500.0,0.0001178,2]
[336395057,1724805049093,-500.0,0.0001178,2]
[336395059,1724805049103,-500.0,0.0001178,2]
[336395060,1724805049114,-500.0,0.0001178,2]
[336395061,1724805049123,-500.0,0.0001178,2]
[336395062,1724805049133,-534.07,0.0001178,2]
[336395063,1724805049142,-290.93984343,0.0001178,2]
[336395064,1724805049151,-259.96,0.0001178,2]
[336395065,1724805049162,-633.70898855,0.0001178,2]
[336395066,1724805049171,-1049.73,0.0001178,2]
[336395067,1724805049181,-500.0,0.0001178,2]
[336395068,1724805049191,-500.0,0.0001178,2]
[336395069,1724805049201,-501.05,0.0001178,2]
[336395070,1724805049210,-636.63,0.0001178,2]
[336395071,1724805049219,-193.73,0.0001178,2]
[336395072,1724805049229,-500.0,0.0001178,2]
[336395073,1724805049238,-500.0,0.0001178,2]
[336395074,1724805049247,-192.01,0.0001178,2]
[336395075,1724805049257,-500.0,0.0001178,2]
[336395076,1724805049274,-500.0,0.0001178,2]
[336395077,1724805049283,-921.96,0.0001178,2]
[336395078,1724805049292,-500.0,0.0001178,2]
[336395079,1724805049302,-4850.17,0.0001178,2]
[336395080,1724805049311,-434.94,0.0001178,2]
[336395081,1724805049321,-1064.09,0.0001178,2]
[336395082,1724805049330,-500.0,0.0001178,2]
[336395083,1724805049339,-594.11900171,0.0001178,2]
[336395084,1724805049349,-2019.09,0.0001178,2]
[336395085,1724805049358,-2175.85,0.0001178,2]
[336395086,1724805049367,-1249.72,0.0001178,2]
[336395088,1724805049377,-500.0,0.0001178,2]
[336395089,1724805049386,-3631.71,0.0001178,2]
[336395090,1724805049395,-609.39,0.0001178,2]
[336395091,1724805049404,-500.0,0.0001178,2]
[336395092,1724805049414,-500.0,0.0001178,2]
[336395093,1724805049423,-937.33,0.0001178,2]
[336395094,1724805049432,-500.0,0.0001178,2]
[336395095,1724805049442,-466.07702903,0.0001178,2]
[336395096,1724805049451,-17034.41,0.0001178,2]
[336395097,1724805049461,-559.33,0.0001178,2]
[336395098,1724805049470,-253.03,0.0001178,2]
[336395099,1724805049480,-500.0,0.0001178,2]
[336395100,1724805049489,-500.0,0.0001178,2]
[336395101,1724805049498,-500.0,0.0001178,2]
[336395102,1724805049508,-3719.4,0.0001178,2]
[336395103,1724805049517,-500.0,0.0001178,2]
[336395104,1724805049527,-500.0,0.0001178,2]
[336395105,1724805049536,-500.0,0.0001178,2]
[336395106,1724805049546,-500.0,0.0001178,2]
[336395107,1724805049558,-500.0,0.0001178,2]
[336395108,1724805049568,-195.32,0.0001178,2]
[336395109,1724805049577,-500.0,0.0001178,2]
[336395110,1724805049587,-500.0,0.0001178,2]
[336395111,1724805049596,-500.0,0.0001178,2]
[336395112,1724805049605,-500.0,0.0001178,2]
[336395113,1724805049615,-500.0,0.0001178,2]
[336395114,1724805049625,-500.0,0.0001178,2]
[336395115,1724805049634,-1145.88,0.0001178,2]
[336395116,1724805049644,-500.0,0.0001178,2]
[336395117,1724805049653,-500.0,0.0001178,2]
[336395118,1724805049663,-500.0,0.0001178,2]
[336395119,1724805049672,-2646.08,0.0001178,2]
[336395120,1724805049681,-500.0,0.0001178,2]
[336395121,1724805049692,-500.0,0.0001178,2]
[336395122,1724805049702,-500.0,0.0001178,2]
[336395123,1724805049711,-500.0,0.0001178,2]
[336395124,1724805049721,-221.64111306,0.0001178,2]
[336395125,1724805049731,-500.0,0.0001178,2]
[336395126,1724805049741,-500.84,0.0001178,2]
[336395127,1724805049750,-9140.54,0.0001178,2]
[336395128,1724805049760,-500.0,0.0001178,2]
[336395129,1724805049770,-345.93000185,0.0001178,2]
[336395130,1724805049779,-500.0,0.0001178,2]
[336395131,1724805049789,-500.0,0.0001178,2]
[336395132,1724805049801,-890.6,0.0001178,2]
[336395133,1724805049810,-500.0,0.0001178,2]
[336395134,1724805049819,-500.0,0.0001178,2]
[336395135,1724805049830,-500.0,0.0001178,2]
[336395136,1724805049839,-323.99,0.0001178,2]
[336395137,1724805049849,-3446.53,0.0001178,2]
[336395138,1724805049858,-824.0,0.0001178,2]
[336395139,1724805049868,-500.0,0.0001178,2]
[336395140,1724805049878,-500.0,0.0001178,2]
[336395141,1724805049887,-500.0,0.0001178,2]
[336395142,1724805049897,-500.0,0.0001178,2]
[336395143,1724805049906,-540.24442495,0.0001178,2]
[336395144,1724805049916,-500.0,0.0001178,2]
[336395145,1724805049926,-500.0,0.0001178,2]
[336395146,1724805049937,-500.0,0.0001178,2]
[336395147,1724805049949,-500.0,0.0001178,2]
[336395148,1724805049958,-500.0,0.0001178,2]
[336395149,1724805049967,-500.0,0.0001178,2]
[336395150,1724805049978,-1443.84,0.0001178,2]
[336395151,1724805049988,-500.0,0.0001178,2]
[336395152,1724805049997,-4310.38,0.0001178,2]
[336395153,1724805050007,-500.0,0.0001178,2]
[336395154,1724805050016,-314.25,0.0001178,2]
[336395155,1724805050026,-5985.82,0.0001178,2]
[336395156,1724805050035,-3212.2,0.0001178,2]
[336395157,1724805050044,-574.03,0.0001178,2]
[336395158,1724805050056,-500.0,0.0001178,2]
[336395159,1724805050066,-500.0,0.0001178,2]
[336395160,1724805050076,-2405.84,0.0001178,2]
[336395161,1724805050085,-500.0,0.0001178,2]
[336395162,1724805050095,-312.10426371,0.00011873,2]
[336395163,1724805050104,-500.0,0.00011873,2]
[336395164,1724805050114,-500.0,0.00011873,2]
[336395165,1724805050123,-500.0,0.00011899,2]
[336395166,1724805050133,-500.0,0.00011899,2]
[336395167,1724805050142,-1187.208526,0.000119,2]
[336395168,1724805050152,-1187.208526,0.000119,2]
[336395169,1724805050162,-521084.49732,0.000119,2]
[336395170,1724805050171,-7528.138438,0.000119,2]
[336395171,1724805050181,-7528.138438,0.000119,2]
[336395172,1724805050191,-230.890913,0.000119,2]
[336395173,1724805050200,-230.890913,0.000119,2]
[336395174,1724805050209,-151.0,0.000119,2]
[336395175,1724805050219,-151.0,0.000119,2]
[336395176,1724805050228,-779.398541,0.000119,2]
[336395177,1724805050238,-779.398541,0.000119,2]
[336395178,1724805050248,-482.00535,0.000119,2]
[336395179,1724805050257,-482.00535,0.000119,2]
[336395180,1724805050267,-151.0,0.000119,2]
[336395181,1724805050277,-1031.421549,0.000119,2]
[336395182,1724805050287,-1031.421549,0.000119,2]
[336395183,1724805050297,-18821.35707847,0.00011954,2]
[336395184,1724805050310,-416.58726052,0.00011987,2]
[336395185,1724805050320,-500.0,0.00012054,2]
[336395186,1724805050329,-500.0,0.00012054,2]
[336395187,1724805050339,-500.0,0.00012054,2]
[336395188,1724805050348,-500.0,0.00012054,2]
[336395189,1724805050357,-500.0,0.00012054,2]
[336395190,1724805050367,-500.0,0.00012054,2]
[336395191,1724805050377,-500.0,0.00012054,2]
[336395192,1724805050386,-500.0,0.00012054,2]
[336395193,1724805050396,-500.0,0.00012054,2]
[336395194,1724805050405,-1310.62,0.00012054,2]
[336395195,1724805050414,-820.23,0.00012054,2]
[336395196,1724805050423,-500.0,0.00012054,2]
[336395197,1724805050433,-1563.68,0.00012054,2]
[336395198,1724805050442,-500.0,0.00012054,2]
[336395199,1724805050452,-614.99708397,0.00012054,2]
[336395200,1724805050461,-500.0,0.00012054,2]
[336395201,1724805050470,-500.0,0.00012054,2]
[336395202,1724805050479,-500.0,0.00012054,2]
[336395203,1724805050489,-500.0,0.00012054,2]
[336395204,1724805050498,-500.0,0.00012054,2]
[336395205,1724805050507,-500.0,0.00012054,2]
[336395206,1724805050516,-500.0,0.00012054,2]
[336395207,1724805050526,-488.05,0.00012054,2]
[336395208,1724805050535,-500.0,0.00012054,2]
[336395209,1724805050545,-534.07,0.00012054,2]
[336395210,1724805050556,-1049.73,0.00012054,2]
[336395211,1724805050565,-501.05,0.00012054,2]
[336395212,1724805050574,-636.63,0.00012054,2]
[336395213,1724805050584,-500.0,0.00012054,2]
[336395214,1724805050593,-500.0,0.00012054,2]
[336395215,1724805050603,-500.0,0.00012054,2]
[336395216,1724805050612,-500.0,0.00012054,2]
[336395217,1724805050621,-921.96,0.00012054,2]
[336395218,1724805050631,-4850.17,0.00012054,2]
[336395219,1724805050641,-1064.09,0.00012054,2]
[336395220,1724805050651,-622.05,0.00012054,2]
[336395221,1724805050660,-2019.09,0.00012054,2]
[336395222,1724805050669,-2175.85,0.00012054,2]
[336395223,1724805050679,-1249.72,0.00012054,2]
[336395224,1724805050688,-500.0,0.00012054,2]
[336395225,1724805050697,-3631.71,0.00012054,2]
[336395226,1724805050707,-609.39,0.00012054,2]
[336395227,1724805050716,-937.33,0.00012054,2]
[336395228,1724805050725,-500.0,0.00012054,2]
[336395229,1724805050735,-500.0,0.00012054,2]
[336395230,1724805050744,-17034.41,0.00012054,2]
[336395231,1724805050753,-559.33,0.00012054,2]
[336395232,1724805050763,-500.0,0.00012054,2]
[336395233,1724805050772,-500.0,0.00012054,2]
[336395234,1724805050781,-484.03,0.00012054,2]
[336395235,1724805050791,-3719.4,0.00012054,2]
[336395236,1724805050801,-500.0,0.00012054,2]
[336395237,1724805050819,-500.0,0.00012054,2]
[336395238,1724805050828,-500.0,0.00012054,2]
[336395239,1724805050837,-247.28,0.00012054,2]
[336395240,1724805050847,-500.0,0.00012054,2]
[336395241,1724805050856,-500.0,0.00012054,2]
[336395242,1724805050866,-500.0,0.00012054,2]
[336395243,1724805050875,-602.9,0.00012054,2]
[336395244,1724805050885,-500.0,0.00012054,2]
[336395245,1724805050894,-500.0,0.00012054,2]
[336395246,1724805050904,-1145.88,0.00012054,2]
[336395247,1724805050913,-500.0,0.00012054,2]
[336395248,1724805050923,-500.0,0.00012054,2]
[336395249,1724805050934,-500.0,0.00012054,2]
[336395250,1724805050948,-2646.08,0.00012054,2]
[336395251,1724805050959,-500.0,0.00012054,2]
[336395252,1724805050968,-500.0,0.00012054,2]
[336395253,1724805050979,-500.0,0.00012054,2]
[336395254,1724805050989,-500.0,0.00012054,2]
[336395255,1724805050999,-172.65,0.00012054,2]
[336395256,1724805051010,-9140.54,0.00012054,2]
[336395257,1724805051021,-500.0,0.00012054,2]
[336395258,1724805051031,-572.61,0.00012054,2]
[336395259,1724805051040,-500.0,0.00012054,2]
[336395260,1724805051051,-890.6,0.00012054,2]
[336395261,1724805051061,-508.88,0.00012054,2]
[336395262,1724805051070,-500.0,0.00012054,2]
[336395263,1724805051080,-3446.53,0.00012054,2]
[336395264,1724805051089,-824.0,0.00012054,2]
[336395265,1724805051099,-500.0,0.00012054,2]
[336395266,1724805051111,-500.0,0.00012054,2]
[336395267,1724805051120,-500.0,0.00012054,2]
[336395268,1724805051130,-500.0,0.00012054,2]
[336395269,1724805051140,-500.0,0.00012054,2]
[336395270,1724805051150,-500.0,0.00012054,2]
[336395271,1724805051159,-564.37355843,0.00012054,2]
[336395272,1724805051169,-1443.84,0.00012054,2]
[336395273,1724805051179,-4310.38,0.00012054,2]
[336395274,1724805051188,-500.0,0.00012054,2]
[336395275,1724805051197,-5985.82,0.00012054,2]
[336395276,1724805051207,-3212.2,0.00012054,2]
[336395277,1724805051216,-337.62,0.00012054,2]
[336395278,1724805051226,-500.0,0.00012054,2]
[336395279,1724805051236,-2405.84,0.00012054,2]
[336395280,1724805051246,-500.0,0.00012328,2]
[336395281,1724805051255,-500.0,0.00012328,2]
[336395282,1724805051264,-202.68,0.00012328,2]
[336395283,1724805051274,-500.0,0.00012328,2]
[336395284,1724805051283,-500.0,0.00012328,2]
[336395285,1724805051293,-500.0,0.00012328,2]
[336395286,1724805051413,-500.0,0.00012328,2]
[336395287,1724805051438,-500.0,0.00012328,2]
[336395288,1724805051448,-575.13,0.00012328,2]
[336395289,1724805051458,-1310.62,0.00012328,2]
[336395290,1724805051467,-820.23,0.00012328,2]
[336395291,1724805051476,-500.0,0.00012328,2]
[336395292,1724805051486,-1563.68,0.00012328,2]
[336395293,1724805051495,-500.0,0.00012328,2]
[336395294,1724805051504,-500.0,0.00012328,2]
[336395295,1724805051513,-500.0,0.00012328,2]
[336395296,1724805051523,-500.0,0.00012328,2]
[336395297,1724805051532,-500.0,0.00012328,2]
[336395298,1724805051541,-644.80996809,0.00012328,2]
[336395299,1724805051551,-255.8,0.00012328,2]
[336395300,1724805051562,-500.0,0.00012328,2]
[336395301,1724805051571,-534.07,0.00012328,2]
[336395302,1724805051580,-1049.73,0.00012328,2]
[336395303,1724805051589,-501.05,0.00012328,2]
[336395304,1724805051599,-636.63,0.00012328,2]
[336395305,1724805051608,-500.0,0.00012328,2]
[336395306,1724805051618,-500.0,0.00012328,2]
[336395307,1724805051627,-237.8,0.00012328,2]
[336395308,1724805051636,-921.96,0.00012328,2]
[336395309,1724805051646,-4850.17,0.00012328,2]
[336395310,1724805051656,-1064.09,0.00012328,2]
[336395311,1724805051665,-2019.09,0.00012328,2]
[336395312,1724805051674,-2175.85,0.00012328,2]
[336395313,1724805051683,-1249.72,0.00012328,2]
[336395314,1724805051692,-500.0,0.00012328,2]
[336395315,1724805051701,-3631.71,0.00012328,2]
[336395316,1724805051711,-609.39,0.00012328,2]
[336395317,1724805051720,-937.33,0.00012328,2]
[336395318,1724805051729,-500.0,0.00012328,2]
[336395319,1724805051738,-500.0,0.00012328,2]
[336395320,1724805051748,-17034.41,0.00012328,2]
[336395321,1724805051757,-559.33,0.00012328,2]
[336395322,1724805051767,-591.65623637,0.00012328,2]
[336395323,1724805051776,-500.0,0.00012328,2]
[336395324,1724805051786,-3719.4,0.00012328,2]
[336395325,1724805051795,-500.0,0.00012328,2]
[336395326,1724805051806,-500.0,0.00012328,2]
[336395327,1724805051816,-500.0,0.00012328,2]
[336395328,1724805051826,-500.0,0.00012328,2]
[336395329,1724805051835,-500.0,0.00012328,2]
[336395330,1724805051845,-500.0,0.00012328,2]
[336395331,1724805051854,-587.01,0.00012328,2]
[336395332,1724805051863,-1145.88,0.00012328,2]
[336395333,1724805051872,-332.96,0.00012328,2]
[336395334,1724805051883,-2646.08,0.00012328,2]
[336395335,1724805051892,-500.0,0.00012328,2]
[336395336,1724805051902,-500.0,0.00012328,2]
[336395337,1724805051911,-500.0,0.00012328,2]
[336395338,1724805051921,-500.0,0.00012328,2]
[336395339,1724805051931,-9140.54,0.00012328,2]
[336395340,1724805051943,-500.0,0.00012328,2]
[336395341,1724805051952,-500.0,0.00012328,2]
[336395342,1724805051961,-890.6,0.00012328,2]
[336395343,1724805051971,-161.57346621,0.00012328,2]
[336395344,1724805051981,-3446.53,0.00012328,2]
[336395345,1724805051990,-824.0,0.00012328,2]
[336395346,1724805051998,-500.0,0.00012328,2]
[336395347,1724805052007,-500.0,0.00012328,2]
[336395348,1724805052018,-500.0,0.00012328,2]
[336395349,1724805052027,-500.0,0.00012328,2]
[336395350,1724805052038,-505.52,0.00012328,2]
[336395351,1724805052048,-1443.84,0.00012328,2]
[336395352,1724805052059,-4310.38,0.00012328,2]
[336395353,1724805052068,-338.5,0.00012328,2]
[336395354,1724805052077,-5985.82,0.00012328,2]
[336395355,1724805052087,-3212.2,0.00012328,2]
[336395356,1724805052096,-500.0,0.00012328,2]
[336395357,1724805052106,-2405.84,0.00012328,2]
[336395358,1724805052116,-183.69809633,0.00012419,2]
[336395359,1724805052125,-1000.0,0.00012421,2]
[336395360,1724805052134,-1000.0,0.00012421,2]
[336395361,1724805052144,-1921.3989197,0.00012551,3]
[336395362,1724805052154,-151.0,0.00012602,2]
[336395363,1724805052163,-500.0,0.00012602,2]
[336395364,1724805052173,-485.05135613,0.00012602,2]
[336395365,1724805052182,-500.0,0.00012602,2]
[336395366,1724805052192,-500.0,0.00012602,2]
[336395367,1724805052202,-595.45460509,0.00012602,2]
[336395368,1724805052211,-500.0,0.00012602,2]
[336395369,1724805052221,-500.0,0.00012602,2]
[336395370,1724805052230,-1310.62,0.00012602,2]
[336395371,1724805052240,-820.23,0.00012602,2]
[336395372,1724805052249,-500.0,0.00012602,2]
[336395373,1724805052259,-1563.68,0.00012602,2]
[336395374,1724805052268,-500.0,0.00012602,2]
[336395375,1724805052277,-159.02,0.00012602,2]
[336395376,1724805052287,-353.77,0.00012602,2]
[336395377,1724805052297,-500.0,0.00012602,2]
[336395378,1724805052312,-500.0,0.00012602,2]
[336395379,1724805052322,-151.0,0.00012602,2]
[336395380,1724805052331,-151.0,0.00012602,2]
[336395381,1724805052341,-829.318633,0.00012602,2]
[336395382,1724805052351,-829.318633,0.00012602,2]
[336395383,1724805052360,-500.0,0.00012602,2]
[336395384,1724805052370,-534.07,0.00012602,2]
[336395385,1724805052379,-151.0,0.00012602,2]
[336395386,1724805052389,-1049.73,0.00012602,2]
[336395387,1724805052399,-151.0,0.00012602,2]
[336395388,1724805052409,-463.579539,0.00012602,2]
[336395389,1724805052418,-463.579539,0.00012602,2]
[336395390,1724805052428,-223.184247,0.00012602,2]
[336395391,1724805052437,-223.184247,0.00012602,2]
[336395392,1724805052447,-501.05,0.00012602,2]
[336395393,1724805052457,-151.0,0.00012602,2]
[336395394,1724805052466,-444.616484,0.00012602,2]
[336395395,1724805052476,-151.0,0.00012602,2]
[336395396,1724805052486,-584.570329,0.00012602,2]
[336395397,1724805052495,-444.616484,0.00012602,2]
[336395398,1724805052505,-636.63,0.00012602,2]
[336395399,1724805052514,-584.570329,0.00012602,2]
[336395400,1724805052524,-500.0,0.00012602,2]
[336395401,1724805052533,-500.0,0.00012602,2]
[336395402,1724805052543,-151.715038,0.00012602,2]
[336395403,1724805052555,-151.715038,0.00012602,2]
[336395404,1724805052565,-151.0,0.00012602,2]
[336395405,1724805052574,-151.0,0.00012602,2]
[336395406,1724805052584,-151.0,0.00012602,2]
[336395407,1724805052594,-912.605783,0.00012602,2]
[336395408,1724805052604,-912.605783,0.00012602,2]
[336395409,1724805052614,-921.96,0.00012602,2]
[336395410,1724805052623,-4850.17,0.00012602,2]
[336395411,1724805052633,-1064.09,0.00012602,2]
[336395412,1724805052642,-2019.09,0.00012602,2]
[336395413,1724805052651,-2175.85,0.00012602,2]
[336395414,1724805052661,-1249.72,0.00012602,2]
[336395415,1724805052670,-704.956808,0.00012602,2]
[336395416,1724805052680,-704.956808,0.00012602,2]
[336395417,1724805052689,-3631.71,0.00012602,2]
[336395418,1724805052698,-609.39,0.00012602,2]
[336395419,1724805052708,-937.33,0.00012602,2]
[336395420,1724805052717,-463.30527446,0.00012602,2]
[336395421,1724805052726,-500.0,0.00012602,2]
[336395422,1724805052735,-185.246333,0.00012602,2]
[336395423,1724805052745,-185.246333,0.00012602,2]
[336395424,1724805052754,-14653.47757301,0.00012602,2]
[336395425,1724805052922,-500.0,0.00011232,2]
[336395426,1724805052932,-2380.93242699,0.00012602,2]
[336395427,1724805052944,-559.33,0.00012602,2]
[336395428,1724805052954,-100.39222405,0.00012602,2]
[336395429,1724805053074,-753.246426,0.00010959,2]
[336395430,1724805053084,-500.0,0.00011506,2]
[336395431,1724805053093,-500.0,0.0001178,2]
[336395432,1724805053103,-500.0,0.00012054,2]
[336395433,1724805053112,-500.0,0.00012054,2]
[336395434,1724805053121,-161.57,0.00012328,2]
[336395435,1724805053130,-500.0,0.00012328,2]
[336395436,1724805053140,-399.60777595,0.00012602,2]
[336395437,1724805053149,-1187.208526,0.00012602,2]
[336395438,1724805053159,-1187.208526,0.00012602,2]
[336395439,1724805053168,-3719.4,0.00012602,2]
[336395440,1724805053178,-500.0,0.00012602,2]
[336395441,1724805053188,-500.0,0.00012602,2]
[336395442,1724805053198,-500.0,0.00012602,2]
[336395443,1724805053208,-500.0,0.00012602,2]
[336395444,1724805053217,-500.0,0.00012602,2]
[336395445,1724805053227,-7528.138438,0.00012602,2]
[336395446,1724805053236,-7528.138438,0.00012602,2]
[336395447,1724805053246,-1145.88,0.00012602,2]
[336395448,1724805053255,-230.890913,0.00012602,2]
[336395449,1724805053265,-230.890913,0.00012602,2]
[336395450,1724805053275,-151.0,0.00012602,2]
[336395451,1724805053285,-2646.08,0.00012602,2]
[336395452,1724805053294,-216.01,0.00012602,2]
[336395453,1724805053306,-151.0,0.00012602,2]
[336395454,1724805053317,-500.0,0.00012602,2]
[336395455,1724805053328,-9140.54,0.00012602,2]
[336395456,1724805053338,-230.28,0.00012602,2]
[336395457,1724805053347,-890.6,0.00012602,2]
[336395458,1724805053356,-779.398541,0.00012602,2]
[336395459,1724805053366,-779.398541,0.00012602,2]
[336395460,1724805053375,-482.00535,0.00012602,2]
[336395461,1724805053384,-3446.53,0.00012602,2]
[336395462,1724805053394,-482.00535,0.00012602,2]
[336395463,1724805053404,-824.0,0.00012602,2]
[336395464,1724805053414,-500.0,0.00012602,2]
[336395465,1724805053423,-500.0,0.00012602,2]
[336395466,1724805053433,-461.101408,0.00012602,2]
[336395467,1724805053443,-500.0,0.00012602,2]
[336395468,1724805053453,-461.101408,0.00012602,2]
[336395469,1724805053463,-151.0,0.00012602,2]
[336395470,1724805053473,-1443.84,0.00012602,2]
[336395471,1724805053483,-4310.38,0.00012602,2]
[336395472,1724805053493,-151.0,0.00012602,2]
[336395473,1724805053502,-5985.82,0.00012602,2]
[336395474,1724805053512,-3212.2,0.00012602,2]
[336395475,1724805053521,-837.036339,0.00012602,2]
[336395476,1724805053530,-500.0,0.00012602,2]
[336395477,1724805053539,-2405.84,0.00012602,2]
[336395478,1724805053549,-837.036339,0.00012602,2]
[336395479,1724805053562,-1031.421549,0.00012602,2]
[336395480,1724805053572,-563.464068,0.00012602,2]
[336395481,1724805053581,-1031.421549,0.00012602,2]
[336395482,1724805053590,-563.464068,0.00012602,2]
[336395483,1724805053600,-500.0,0.00012602,2]
[336395484,1724805053609,-150.0,0.00012741,2]
[336395485,1724805053618,-522.0,0.00012741,2]
[336395486,1724805053627,-811.78467002,0.00012779,2]
[336395487,1724805053637,-2064.77634518,0.00012779,2]
[336395488,1724805053646,-151.0,0.00012844,2]
[336395489,1724805053655,-151.0,0.00012844,2]
[336395490,1724805053665,-396.169146,0.00012844,2]
[336395491,1724805053674,-701.857122,0.00012844,2]
[336395492,1724805053683,-396.169146,0.00012844,2]
[336395493,1724805053692,-701.857122,0.00012844,2]
[336395494,1724805053701,-301.26,0.00012876,2]
[336395495,1724805053711,-500.0,0.00012876,2]
[336395496,1724805053720,-500.0,0.00012876,2]
[336395497,1724805053729,-500.0,0.00012876,2]
[336395498,1724805053738,-500.0,0.00012876,2]
[336395499,1724805053748,-1310.62,0.00012876,2]
[336395500,1724805053758,-820.23,0.00012876,2]
[336395501,1724805053768,-500.0,0.00012876,2]
[336395502,1724805053777,-1563.68,0.00012876,2]
[336395503,1724805053787,-477.812124,0.00012876,2]
[336395504,1724805053796,-477.812124,0.00012876,2]
[336395505,1724805053806,-151.0,0.00012876,2]
[336395506,1724805053816,-409.622358,0.00012876,2]
[336395507,1724805053825,-500.0,0.00012876,2]
[336395508,1724805053834,-151.0,0.00012876,2]
[336395509,1724805053844,-409.622358,0.00012876,2]
[336395510,1724805053853,-275.739352,0.00012876,2]
[336395511,1724805053862,-275.739352,0.00012876,2]
[336395512,1724805053872,-151.0,0.00012876,2]
[336395513,1724805053881,-637.93,0.00012876,2]
[336395514,1724805053891,-350.88,0.00012876,2]
[336395515,1724805053900,-596.168019,0.00012876,2]
[336395516,1724805053909,-596.168019,0.00012876,2]
[336395517,1724805053919,-500.0,0.00012876,2]
[336395518,1724805053929,-534.07,0.00012876,2]
[336395519,1724805053941,-1049.73,0.00012876,2]
[336395520,1724805053950,-501.05,0.00012876,2]
[336395521,1724805053960,-636.63,0.00012876,2]